Cogmind - Beta 11.1 @@@ ROGUE MODE // 2022.06.19 @ 08:13:46 Player: JackNine Result: Destroyed by MI-2O7(z) with Makeshift Axe Performance ------------- Evolutions (3) 1500 Regions Visited (11) 2200 Robots Destroyed (91) 455 Value Destroyed (2592) 2592 Prototype IDs (41) 820 Alien Tech Used (0) 0 Bonus (628) 628 TOTAL SCORE: 8195 Bonus ------- High Alert Combat Kills 24 Follower Combat Kills 130 Aligned with FarCom 300 Met Imprinter 300 Friendly Fire -126 Cogmind --------- Core Integrity 0/700 Matter 121/300 Energy 65/100 System Corruption 31% Temperature Cool (0) Movement Rolling (100) Location -7/Zion Parts ------- > --- POWER (1) -------- (None) > --- PROPULSION (4) --- Armored Huge Wheel > --- UTILITY (5) ------ Machine Analyzer Advanced Targeting Computer Hacking Drone Bay (1/1) > --- WEAPON (3) ------- RU-N14's Throwing Claymores > --- INVENTORY (5) ---- 0b10 Alert Chip Advanced ECM Suite Medium Reactive Plating Heavy Rocket Launcher Peak State ------------ > --- POWER ------------ Makeshift Power Source > --- PROPULSION ------- Improved Aluminum Leg Armored Huge Wheel > --- UTILITY ---------- Improved Heat Sink Compact Battery Machine Analyzer Advanced Targeting Computer Hacking Drone Bay > --- WEAPON ----------- RU-N14's Throwing Claymores RU-N14's Throwing Claymores RU-N14's Throwing Claymores > --- INVENTORY -------- 0b10 Alert Chip Advanced ECM Suite Medium Reactive Plating Heavy Rocket Launcher RU-N14's Throwing Claymores [Rating: 58] Favorites ----------- Power Nuclear Core Engine Heavy Ion Engine Power Core Nuclear Core Propulsion Armored Treads Treads Armored Treads Leg Improved Aluminum Leg Wheel Armored Huge Wheel Hover Unit Aerolev Unit Utility Advanced Targeting Computer Device Improved Heat Sink Storage High-capacity Storage Unit Processor Advanced Targeting Computer Protection Hardened Heavy Armor Plating Weapon Precision Shock Rifle Energy Gun Precision Shock Rifle Ballistic Gun High-powered Shotgun Launcher Heavy Rocket Launcher Special Weapon RU-N14's Throwing Claymores Impact Weapon Power Maul Slashing Weapon Phasing Sabre Build | -11 -10 -10 -10 -9 -8 -7 -7 -7 -7 -7 -7 ------- Run | Scr Mat Min Exi Min Mat Fac Was Fac Low Low Zio Slots Evolved 6 | . . . . . 4 2 . . . . . Power . | . . . . . . . . . . . . Propulsion 2 | . . . . . 1 1 . . . . . Utility 3 | . . . . . 2 1 . . . . . Weapon 1 | . . . . . 1 . . . . . . Parts Attached 156 | 6 12 . . 8 32 7 4 45 1 13 28 Power 12 | 1 2 . . 1 1 . . 3 . . 4 Engine 6 | 1 1 . . . 1 . . . . . 3 Core 6 | . 1 . . 1 . . . 3 . . 1 Reactor . | . . . . . . . . . . . . Propulsion 31 | 2 2 . . . 11 4 1 7 . 2 2 Treads 20 | 1 1 . . . 8 2 . 6 . 2 . Leg 1 | . . . . . . . . . . . 1 Wheel 9 | 1 1 . . . 2 2 1 1 . . 1 Hover 1 | . . . . . 1 . . . . . . Flight . | . . . . . . . . . . . . Utility 26 | 1 5 . . 1 4 2 1 7 1 1 3 Device 13 | . 3 . . 1 1 . 1 5 1 . 1 Storage 6 | 1 2 . . . . . . 1 . 1 1 Processor 3 | . . . . . 1 1 . . . . 1 Hackware . | . . . . . . . . . . . . Protection 4 | . . . . . 2 1 . 1 . . . Artifact . | . . . . . . . . . . . . Weapon 87 | 2 3 . . 6 16 1 2 28 . 10 19 Energy Gun 59 | 1 3 . . 3 13 1 1 18 . 8 11 Energy Cannon . | . . . . . . . . . . . . Ballistic Gun 15 | 1 . . . 2 2 . . 8 . . 2 Ballistic Cannon . | . . . . . . . . . . . . Launcher 6 | . . . . . 1 . . 2 . 2 1 Special Weapon 4 | . . . . . . . . . . . 4 Impact Weapon 2 | . . . . 1 . . 1 . . . . Slashing Weapon 1 | . . . . . . . . . . . 1 Piercing Weapon . | . . . . . . . . . . . . Special Melee Weapon . | . . . . . . . . . . . . Unidentified Prototypes 9 | . . . . . 6 . . 1 . . 2 Corrupted Parts 4 | . . . . 2 . . . . . . 2 System Corruption 30 | . . . . 8 . . . . . . 22 Parts Lost 26 | . 1 . . 1 1 2 2 . . 1 18 Power 5 | . . . . 1 . . . . . . 4 Propulsion 5 | . 1 . . . . . . . . . 4 Utility 6 | . . . . . . 1 1 . . 1 3 Weapon 10 | . . . . . 1 1 1 . . . 7 Highest Loss Streak 9 | . 1 . . 1 1 2 1 . . 1 9 To Critical Strikes . | . . . . . . . . . . . . Average Slot Usage (%) 86 | . 97 100 71 100 97 90 72 79 83 82 81 Engine 1 | . 1 . . . 6 7 5 . . . 1 Core 7 | . 12 14 14 14 2 . . 6 7 7 5 Treads 14 | . 13 14 14 14 15 14 3 14 15 15 13 Wheel 8 | . 13 14 14 14 8 7 12 6 7 7 6 Device 9 | . 12 14 14 14 10 7 7 7 6 7 7 Storage 10 | . 14 14 14 14 9 7 4 6 7 8 14 Processor 6 | . . . . . 7 15 15 7 7 7 7 Protection 3 | . . . . . 9 7 4 6 7 4 . Energy Gun 19 | . 24 28 . 16 24 22 11 16 23 22 19 Ballistic Gun 1 | . 3 . . 11 2 . . 3 . . . Naked Turns . | . . . . . . . . . . . . Heaviest Build 227 | 10 50 50 50 53 61 65 65 52 50 50 227 Greatest Support 56 | 16 20 10 10 10 28 28 56 28 28 28 28 Greatest Overweight (x) 8 | . 4 4 4 5 6 2 2 1 1 1 8 Average Overweight (x) 3 | . 2 4 4 4 4 2 . . 1 1 6 Largest Inventory Capacity 35 | 8 20 20 20 20 20 20 20 10 10 10 35 Average Capacity 19 | 7 15 20 20 20 20 20 14 9 10 10 32 Most Carried 26 | 4 15 16 19 20 20 20 20 10 10 10 26 Average Carried 15 | 2 9 15 18 19 19 18 14 9 10 10 19 Final Capacity 20 | 8 20 20 20 20 20 20 5 10 10 10 5 Final Carried 20 | 4 15 16 19 20 20 20 5 10 10 10 4 Class Distribution -------------------- 30% | Mutant 25% | Skirmisher 23% | Hauler-Gunner 14% | Gunner 3% | Scavenger-Skirmisher Dominant Class ---------------- Mutant | -10/Materials Mutant | -10/Mines Mutant | -10/Exiles Mutant | -9/Mines Skirmisher | -8/Materials Gunner | -7/Factory Mutant | -7/Waste Skirmisher | -7/Factory Gunner | -7/Lower Caves Gunner | -7/Lower Caves Hauler-Gunner | -7/Zion Resources | -11 -10 -10 -10 -9 -8 -7 -7 -7 -7 -7 -7 ----------- Run | Scr Mat Min Exi Min Mat Fac Was Fac Low Low Zio Matter Collected 2137 | 217 210 . . 55 425 70 . 645 85 266 164 Remotely . | . . . . . . . . . . . . Salvage Created 3636 | . 639 . . 41 803 176 . 616 181 282 898 Parts 203 | . 36 . . 1 45 5 . 27 6 17 66 Haulers Intercepted 5 | . . . . . 4 . . 1 . . . Recyclers Shooed 2 | . 2 . . . . . . . . . . Parts Field Recycled . | . . . . . . . . . . . . Retrieved Matter . | . . . . . . . . . . . . Parts Self-Destructed 21 | . . . . . . . . . 4 15 2 Prevented 7 | . . . . . . . . . 5 2 . Kills | -11 -10 -10 -10 -9 -8 -7 -7 -7 -7 -7 -7 ------- Run | Scr Mat Min Exi Min Mat Fac Was Fac Low Low Zio Combat Hostiles Destroyed 54 | . 17 . . 1 10 2 . 5 3 8 8 Guns 36 | . 17 . . 1 8 1 . 5 2 2 . AOE 12 | . . . . . 2 . . . . 6 4 Classes Destroyed 14 | . 4 . . . 4 . . 2 . 1 3 Worker 4 | . 3 . . . . 1 . . . . . Hauler 5 | . . . . . 4 . . 1 . . . Recycler 4 | . . . . . . . . 4 . . . Watcher 4 | . 1 . . . 3 . . . . . . Swarmer 10 | . 6 . . . . . . . . 4 . Grunt 23 | . 11 . . 1 5 . . 1 2 3 . Brawler 1 | . . . . . 1 . . . . . . Duelist 1 | . . . . . 1 . . . . . . Sentry 8 | . . . . . 3 2 . 2 1 . . Programmer 2 | . . . . . . . . 2 . . . Behemoth 1 | . . . . . . . . . . 1 . Zionite 36 | . . . . . . . . . . . 36 Tinkerer 2 | . . . . . . . . . . . 2 Thug 1 | . . . . . . . . . . . 1 Marauder 2 | . . . . . . . . . . . 2 Mutant 4 | . . . . . . . . . . . 4 Best Kill Streak 21 | . 7 . . 1 3 1 . 2 3 4 21 Combat Bots Only 7 | . 7 . . 1 2 1 . 2 3 4 4 Max Kills in Single Turn 4 | . 1 . . 1 2 1 . 1 1 4 3 Gunslinging . | . . . . . . . . . . . . Exploded 4 | . . . . . 2 . . . . 4 1 Melee . | . . . . . . . . . . . . Uniques/NPCs Destroyed 1 | . . . . . . . . . . . 1 ME-RLN (-7/Zion) Combat | -11 -10 -10 -10 -9 -8 -7 -7 -7 -7 -7 -7 -------- Run | Scr Mat Min Exi Min Mat Fac Was Fac Low Low Zio Damage Taken 5766 | . 430 . . 86 223 442 361 515 302 965 2442 Core 874 | . 83 . . 25 42 95 43 54 30 91 411 Absorbed by Shields . | . . . . . . . . . . . . Regen/Repaired (Parts) 200 | . 102 . . . . 98 . . . . . Core Remaining (%) 82 | 100 . . . 56 92 . . . . . . Volleys Fired 228 | . 63 . . 2 36 7 . 32 5 14 69 Largest 3 | . 2 . . 2 3 3 . 3 3 3 3 Hottest 204 | . 100 . . 100 165 150 . 174 165 204 185 Shots Fired 490 | . 125 . . 4 94 21 . 73 15 33 125 Gun 447 | . 125 . . 4 90 21 . 71 15 30 91 Cannon . | . . . . . . . . . . . . Launcher 12 | . . . . . 4 . . 2 . 3 3 Special 31 | . . . . . . . . . . . 31 Kinetic 63 | . 28 . . . 9 . . 15 . . 11 Thermal 222 | . 97 . . 4 48 . . 28 . 19 26 Explosive 43 | . . . . . 4 . . 2 . 3 34 Electromagnetic 162 | . . . . . 33 21 . 28 15 11 54 Robot Hit Streak 40 | . 8 . . 6 11 17 . 18 20 10 40 Robot Miss Streak 7 | . 7 . . . 3 2 . 2 1 2 3 Penetration Max . | . . . . . . . . . . . . Secondary Targets 5 | . 1 . . . . . . . . . 4 Max Gunslinging Chain 1 | . 1 . . . . . . . . . 1 Shots Hit Robots 321 | . 61 . . 4 64 17 1 39 14 27 94 Core Hits 165 | . 34 . . 2 28 6 . 19 6 15 55 Critical Kills . | . . . . . . . . . . . . Critical Parts Destroyed . | . . . . . . . . . . . . Critical Strikes 13 | . 2 . . 1 2 . . 1 . 1 6 Burn 5 | . 2 . . 1 . . . 1 . 1 . Corrupt 3 | . . . . . 2 . . . . . 1 Sever 5 | . . . . . . . . . . . 5 Melee Attacks 5 | . . . . . . . 5 . . . . Impact 5 | . . . . . . . 5 . . . . Slashing . | . . . . . . . . . . . . Piercing . | . . . . . . . . . . . . Sneak Attacks . | . . . . . . . . . . . . Combat Hostiles . | . . . . . . . . . . . . Follow-up Attacks . | . . . . . . . . . . . . Damage Inflicted 10117 | . 783 . . 54 1596 272 41 864 272 996 5239 Guns 5216 | . 781 . . 54 1108 272 . 864 272 631 1234 Cannons . | . . . . . . . . . . . . Explosions 3935 | . . . . . 488 . . . . 365 3082 Melee 41 | . . . . . . . 41 . . . . Ramming 2 | . 2 . . . . . . . . . . Kinetic 489 | . 127 . . . 70 . . 225 . . 67 Thermal 2712 | . 654 . . 54 592 . . 410 . 550 452 Explosive 3695 | . . . . . 488 . . . . 232 2975 Electromagnetic 2255 | . . . . . 446 272 . 229 272 214 822 Impact 41 | . . . . . . . 41 . . . . Slashing 923 | . . . . . . . . . . . 923 Piercing . | . . . . . . . . . . . . Highest Corruption 31 | . 4 4 4 12 . 1 17 20 20 20 31 Average Corruption 13 | . 3 4 4 4 . 1 10 18 20 20 23 Corruption Purged . | . . . . . . . . . . . . Corruption Blocked . | . . . . . . . . . . . . Effects 178 | . 13 2 6 7 . . 6 74 15 24 31 Message Errors 33 | . 2 . 1 . . . 2 17 . 3 8 Matter Fused 35 | . 3 . . . . . . 18 2 4 8 Heat Flow Errors 25 | . 1 1 . 1 . . 2 6 5 6 3 Energy Discharges 20 | . 2 . 1 3 . . . 6 2 3 3 Parts Rejected 5 | . 1 . . . . . 1 2 1 . . Data Loss (minor) 30 | . 3 1 4 2 . . . 13 2 4 1 Data Loss (major) 7 | . 1 . . . . . 1 4 . 1 . Misfires 2 | . . . . . . . . 1 1 . . Alerts 5 | . . . . 1 . . . 2 . . 2 Misdirections 3 | . . . . . . . . . 1 . 2 Weapon Failures 13 | . . . . . . . . 5 1 3 4 Overload Shots . | . . . . . . . . . . . . Overflow Damage 144 | . . . . . 15 . . . . . 129 Projectiles 24 | . . . . . . . . . . . 24 Explosions 120 | . . . . . 15 . . . . . 105 Melee . | . . . . . . . . . . . . Knockbacks . | . . . . . . . . . . . . Impact . | . . . . . . . . . . . . Kinetic . | . . . . . . . . . . . . Secondary . | . . . . . . . . . . . . Self-Inflicted Damage 222 | . . . . . 70 . . . . 16 136 Shots 6 | . . . . . 2 . . . . 1 3 Rammed 1 | . 1 . . . . . . . . . . Targets Rammed 1 | . 1 . . . . . . . . . . Kicked . | . . . . . . . . . . . . Crushed . | . . . . . . . . . . . . Highest Temperature 505 | . 186 93 . 170 277 192 132 255 340 505 457 Average Temperature 83 | . 34 51 . 50 81 79 69 71 131 171 97 Received Heat Transfer 849 | . 180 . . . 72 24 . 90 135 204 144 Effects 5 | . . . . . . . . . 1 3 1 Shutdowns 1 | . . . . . . . . . . . 1 Energy Bleed 1 | . . . . . . . . . . 1 . Interference 1 | . . . . . . . . . 1 . . Matter Decay 1 | . . . . . . . . . . 1 . Damage (core) 1 | . . . . . . . . . . 1 . Siege Activations . | . . . . . . . . . . . . Robots Corrupted 7 | . . . . . 1 1 . . 1 . 4 Combat Hostiles 6 | . . . . . . 1 . . 1 . 4 Parts Fried 22 | . . . . . 3 5 . 1 1 1 11 Impact Corruptions . | . . . . . . . . . . . . Robots Melted . | . . . . . . . . . . . . Combat Hostiles . | . . . . . . . . . . . . Parts Melted 17 | . 7 . . 2 1 . . 4 . . 3 Heat Transferred 5878 | . 1943 . . 222 1332 . . 790 . 993 598 Parts Sabotaged . | . . . . . . . . . . . . Parts Stolen . | . . . . . . . . . . . . Parts Stripped . | . . . . . . . . . . . . Power Chain Reactions 5 | . . . . . 1 . . . . 1 3 Missiles Intercepted . | . . . . . . . . . . . . Alert | -11 -10 -10 -10 -9 -8 -7 -7 -7 -7 -7 -7 ------- Run | Scr Mat Min Exi Min Mat Fac Was Fac Low Low Zio Peak Influence 489 | . 489 84 . 58 263 113 57 105 . . . Initial 84 | . . 84 . . 18 46 39 26 . . . Average 117 | . 283 84 . 55 131 65 47 45 . . . Maximum Alert Level 2 | . 2 . . . 1 . . . . . . Low Security (%) 80 | 100 27 100 . 100 81 100 100 100 . . . Level 1 16 | . 59 . . . 18 . . . . . . Level 2 2 | . 12 . . . . . . . . . . Level 3 . | . . . . . . . . . . . . Level 4 . | . . . . . . . . . . . . Level 5 . | . . . . . . . . . . . . High Security . | . . . . . . . . . . . . Max Security . | . . . . . . . . . . . . Squads Dispatched 12 | . 4 . . . 1 1 . 6 . . . Investigation 3 | . 1 . . . . . . 2 . . . Extermination 2 | . . . . . . . . 2 . . . Reinforcement 6 | . 3 . . . . 1 . 2 . . . Assault . | . . . . . . . . . . . . Garrison 1 | . . . . . 1 . . . . . . Intercept . | . . . . . . . . . . . . Searches Triggered . | . . . . . . . . . . . . Construction Impeded . | . . . . . . . . . . . . Haulers Reinforced 1 | . . . . . . . . 1 . . . Active Scanning Responses . | . . . . . . . . . . . . Cargo Convoy Interrupts . | . . . . . . . . . . . . Stealth | -11 -10 -10 -10 -9 -8 -7 -7 -7 -7 -7 -7 --------- Run | Scr Mat Min Exi Min Mat Fac Was Fac Low Low Zio Distress Signals 7 | . 4 . . . 3 . . . . . . Communications Jammed . | . . . . . . . . . . . . Distress Signals . | . . . . . . . . . . . . Times Spotted 143 | . 27 . . 3 22 1 6 6 14 7 57 Peak Tracking Total 11 | . 5 . . 3 7 1 6 2 11 4 8 Tactical Retreats 16 | . . . . . 1 . . . 3 . 12 Traps | -11 -10 -10 -10 -9 -8 -7 -7 -7 -7 -7 -7 ------- Run | Scr Mat Min Exi Min Mat Fac Was Fac Low Low Zio Traps Triggered 8 | . 2 . . 1 . 3 . 2 . . . Indirectly . | . . . . . . . . . . . . Trap Hack Attempts . | . . . . . . . . . . . . Triggered . | . . . . . . . . . . . . Disarmed . | . . . . . . . . . . . . Reprogrammed . | . . . . . . . . . . . . Reused . | . . . . . . . . . . . . Traps Extracted . | . . . . . . . . . . . . Installed . | . . . . . . . . . . . . Triggered . | . . . . . . . . . . . . Machines | -11 -10 -10 -10 -9 -8 -7 -7 -7 -7 -7 -7 ---------- Run | Scr Mat Min Exi Min Mat Fac Was Fac Low Low Zio Machines Disabled 2 | . . . . . 1 . . 1 . . . Max in Single Turn 1 | . . . . . 1 . . 1 . . . Garrison Access 2 | . . . . . 1 . . 1 . . . Machines Sabotaged . | . . . . . . . . . . . . Garrisons Compromised . | . . . . . . . . . . . . Overloaded Fab Kills . | . . . . . . . . . . . . Hacking | -11 -10 -10 -10 -9 -8 -7 -7 -7 -7 -7 -7 --------- Run | Scr Mat Min Exi Min Mat Fac Was Fac Low Low Zio Machines Accessed 23 | . 7 . 2 1 3 3 . 7 . . . Terminals 9 | . 5 . . . 2 1 . 1 . . . Fabricators 2 | . . . . . . 1 . 1 . . . Repair Stations 3 | . 1 . . . . 1 . 1 . . . Recycling Units 3 | . 1 . . . . . . 2 . . . Scanalyzers 1 | . . . . . . . . 1 . . . Garrison Access 2 | . . . . . 1 . . 1 . . . Total Hacks 53 | . 20 . 2 1 8 7 . 15 . . . Successful 26 | . 11 . 2 1 3 4 . 5 . . . Failed 26 | . 8 . . . 5 3 . 10 . . . Catastrophic 6 | . 1 . . . 2 1 . 2 . . . Database Lockouts 1 | . 1 . . . . . . . . . . Manual 27 | . 14 . 1 . 4 3 . 5 . . . Terminals 29 | . 17 . . . 7 2 . 3 . . . Fabricators 3 | . . . . . . 2 . 1 . . . Repair Stations 7 | . 2 . . . . 3 . 2 . . . Recycling Units 6 | . 1 . . . . . . 5 . . . Scanalyzers 3 | . . . . . . . . 3 . . . Garrison Access 2 | . . . . . 1 . . 1 . . . Terminal Hacks 12 | . 6 . 2 1 2 . . 1 . . . Record 1 | . . . 1 . . . . . . . . Robot Analysis 2 | . 2 . . . . . . . . . . Prototype ID Bank 5 | . 3 . . . 2 . . . . . . Open Door 1 | . . . . 1 . . . . . . . Branch Access Points 1 | . . . . . . . . 1 . . . Locate Traps 1 | . 1 . . . . . . . . . . EX-Prototype ID Bank 1 | . . . 1 . . . . . . . . Fabricator Hacks 1 | . . . . . . 1 . . . . . Network Status 1 | . . . . . . 1 . . . . . Repair Station Hacks 5 | . 2 . . . . 2 . 1 . . . Scan Component 3 | . 1 . . . . 1 . 1 . . . Repair 2 | . 1 . . . . 1 . . . . . Recycling Unit Hacks 1 | . . . . . . . . 1 . . . Report Inventory 1 | . . . . . . . . 1 . . . Scanalyzer 1 | . . . . . . . . 1 . . . Insert Component 1 | . . . . . . . . 1 . . . Garrison Access Hacks 2 | . . . . . 1 . . 1 . . . Seal Access 2 | . . . . . 1 . . 1 . . . Unauthorized Hacks 4 | . 3 . . . . 1 . . . . . Terminals 2 | . 2 . . . . . . . . . . Botnet 2 | . 2 . . . . . . . . . . Fabricators 1 | . . . . . . 1 . . . . . Haulers 1 | . . . . . . 1 . . . . . Repair Stations . | . . . . . . . . . . . . Recycling Units 1 | . 1 . . . . . . . . . . Tunnel 1 | . 1 . . . . . . . . . . Scanalyzers . | . . . . . . . . . . . . Garrison Access . | . . . . . . . . . . . . Data Cores Recovered . | . . . . . . . . . . . . Used . | . . . . . . . . . . . . Hacking Detections 16 | . 5 . . . 2 3 . 6 . . . Full Trace Events 1 | . . . . . . . . 1 . . . Feedback Events . | . . . . . . . . . . . . Feedback Blocked . | . . . . . . . . . . . . Robot Schematics Acquired 3 | . . . . . . . . . . . 3 Robots Built . | . . . . . . . . . . . . Authchips . | . . . . . . . . . . . . Time . | . . . . . . . . . . . . Total Robot Build Rating . | . . . . . . . . . . . . Part Schematics Acquired 14 | . . . . . . . . . . . 14 Parts Built . | . . . . . . . . . . . . Authchips . | . . . . . . . . . . . . Time . | . . . . . . . . . . . . Total Part Build Rating . | . . . . . . . . . . . . Parts Repaired 2 | . 1 . . . . 1 . . . . . Time 64 | . 26 . . . . 38 . . . . . Parts Recycled . | . . . . . . . . . . . . Recycled Matter . | . . . . . . . . . . . . Retrieved Matter . | . . . . . . . . . . . . Retrieved Components . | . . . . . . . . . . . . Parts Scanalyzed 1 | . . . . . . . . 1 . . . Part Schematics Acquired . | . . . . . . . . . . . . Parts Damaged . | . . . . . . . . . . . . Bothacking | -11 -10 -10 -10 -9 -8 -7 -7 -7 -7 -7 -7 ------------ Run | Scr Mat Min Exi Min Mat Fac Was Fac Low Low Zio Used RIF Installer . | . . . . . . . . . . . . Robots Hacked . | . . . . . . . . . . . . Non-combat . | . . . . . . . . . . . . Combat . | . . . . . . . . . . . . Robot Hacks Applied . | . . . . . . . . . . . . Relay Couplers Released . | . . . . . . . . . . . . Fabnet Peak Effective % . | . . . . . . . . . . . . Robots Rewired . | . . . . . . . . . . . . Allies Hacked . | . . . . . . . . . . . . Hacks Repelled . | . . . . . . . . . . . . Allies | -11 -10 -10 -10 -9 -8 -7 -7 -7 -7 -7 -7 -------- Run | Scr Mat Min Exi Min Mat Fac Was Fac Low Low Zio Total Allies 3 | . . 3 . . . . . . . . . Largest Group 3 | . . 3 3 3 2 . . . . . . Highest-Rated Group 40 | . . 40 40 40 24 . . . . . . Highest-Rated Ally 16 | . . 16 16 16 16 . . . . . . Total Orders . | . . . . . . . . . . . . Ally Attacks 24 | . . . . 7 17 . . . . . . Total Damage 257 | . . . . 93 164 . . . . . . Kills 4 | . . . . 2 2 . . . . . . Allies Corrupted . | . . . . . . . . . . . . Allies Melted . | . . . . . . . . . . . . Intel | -11 -10 -10 -10 -9 -8 -7 -7 -7 -7 -7 -7 ------- Run | Scr Mat Min Exi Min Mat Fac Was Fac Low Low Zio Robot Analysis Total 2 | . 2 . . . . . . . . . . Derelict Logs Recovered 7 | . . 1 . 1 . . . . 2 2 1 Drone Launches . | . . . . . . . . . . . . Drone Recoveries . | . . . . . . . . . . . . Exploration | -11 -10 -10 -10 -9 -8 -7 -7 -7 -7 -7 -7 ------------- Run | Scr Mat Min Exi Min Mat Fac Was Fac Low Low Zio Turns Passed 8256 | 58 960 150 397 397 1064 289 190 1538 326 595 2292 Spaces Moved 4956 | 46 549 107 283 224 565 153 141 1133 261 453 1041 Core 1 | 1 . . . . . . . . . . . Treads 1 | . 1 . . . . . . . . . . Legs . | . . . . . . . . . . . . Wheels 4954 | 45 548 107 283 224 565 153 141 1133 261 453 1041 Hover . | . . . . . . . . . . . . Flight . | . . . . . . . . . . . . Fastest Speed 50 | 50 100 140 140 140 130 130 100 100 115 115 100 Average Speed 140 | 98 125 140 140 154 152 130 110 113 115 115 195 Slowest Speed 220 | 100 160 140 140 155 170 130 130 115 115 115 220 Overloaded Moves . | . . . . . . . . . . . . Propulsion Burnouts . | . . . . . . . . . . . . Robots Hopped . | . . . . . . . . . . . . Cave-ins Triggered . | . . . . . . . . . . . . Exploration Rate (%) 48 | 2 86 30 70 46 36 6 72 25 49 68 87 Regions Visited 11 Branch Regions 6 Pre-discovered Areas 6 | . 1 1 1 1 . . . . 1 . 1 Known Exits Taken 2 | . . . . . . . . 1 1 . . Unknown Exits Taken 7 | 1 1 1 1 1 1 . . . . 1 . Scrap Searched 14 | . . 1 . 2 . . . . 2 5 4 Spaces Dug 24 | . . . . . . . 4 20 . . . Terrain Destroyed 295 | . . . . . 40 . 4 28 . 77 146 Melee 4 | . . . . . . . 4 . . . . Projectile 2 | . . . . . . . . 1 . . 1 AOE 289 | . . . . . 40 . . 27 . 77 145 Terrain Rammed . | . . . . . . . . . . . . Walls Destroyed . | . . . . . . . . . . . . Machines Disabled . | . . . . . . . . . . . . Actions | -11 -10 -10 -10 -9 -8 -7 -7 -7 -7 -7 -7 --------- Run | Scr Mat Min Exi Min Mat Fac Was Fac Low Low Zio Total 5788 | 55 700 107 285 271 708 230 165 1321 275 492 1179 Wait 279 | . 59 . . 26 23 56 9 74 9 12 11 Move 4946 | 45 548 106 282 223 564 153 140 1132 260 452 1041 Hop . | . . . . . . . . . . . . Pick Up 79 | 4 10 1 1 7 15 3 3 13 . . 22 Fast Attach 61 | 6 5 . . 1 13 3 2 19 1 2 9 Attach 30 | . 1 . . 3 5 4 1 3 . . 13 Detach 19 | . 2 . 2 . 3 2 . 4 . . 6 Swap 66 | . 6 . . 4 15 . 1 23 . 11 6 Drop 74 | . 5 . . 5 34 2 4 21 . 1 2 Fire 228 | . 63 . . 2 36 7 . 32 5 14 69 Melee 5 | . . . . . . . 5 . . . . Ram . | . . . . . . . . . . . . Kick . | . . . . . . . . . . . . Crush 1 | . 1 . . . . . . . . . . Escape Stasis . | . . . . . . . . . . . . Rewire . | . . . . . . . . . . . . Trap . | . . . . . . . . . . . . Miscellaneous . | . . . . . . . . . . . . Route ------- -11/Scrapyard -10/Materials (discovered 4 exits: [*Mat x2] / [*Min x2]) -10/Mines -10/Exiles -9/Mines -8/Materials -7/Factory -7/Waste -7/Factory (discovered 3 exits: [*Fac] / *Low x2) -7/Lower Caves -7/Lower Caves (discovered 2 exits: [*Fac] / [*Zio]) -7/Zion (discovered 1 exit: [*Pro]) History --------- Turn | Location | Event 25 | -11/Scrapyard | Discovered new exit (range 16) 59 | -11/Scrapyard | Entered Materials 271 | -10/Materials | Destroyed 7 combat bots 324 | -10/Materials | Build established: Mutant 481 | -10/Materials | Discovered new exit (range 14) 547 | -10/Materials | Discovered new exit (range 13) 632 | -10/Materials | Discovered new exit (range 16) 755 | -10/Materials | Discovered new exit (range 15) 891 | -10/Materials | Central database locked down 947 | -10/Materials | Repaired Lgt. Treads 1019 | -10/Materials | Entered Mines 1039 | -10/Mines | Learned location of Recycling (-8) 1057 | -10/Mines | Assisted by bots powering up and referring to "LRC-V3" 1160 | -10/Mines | Deemed a non-threat by the Exiles lab entrance 1160 | -10/Mines | Discovered new exit (range 5) 1169 | -10/Mines | Entered Exiles 1169 | -10/Exiles | Accompanied by 3 allies 1205 | -10/Exiles | Met 8R-AWN 1228 | -10/Exiles | Met EX-HEX 1268 | -10/Exiles | Met EX-BIN 1285 | -10/Exiles | Aligned with FarCom system 1287 | -10/Exiles | Given EX-Vault access code 1320 | -10/Exiles | Opened EX-Vault 1330 | -10/Exiles | Found 0b10 Alert Chip 1359 | -10/Exiles | Warned to stay clear of 0b10 Research branches 1401 | -10/Exiles | Met EX-DEC 1415 | -10/Exiles | Learned location of Zion (-7) 1552 | -10/Exiles | Discovered new exit (range 12) 1566 | -10/Exiles | Left Exiles lab with 0b10 Alert Chip 1566 | -10/Exiles | Entered Mines 1566 | -9/Mines | Accompanied by 3 allies 1724 | -9/Mines | A weapon hastily lodged in a ceiling crevice suddenly fell to the ground 1774 | -9/Mines | Received a Rocket Launcher from a helpful Derelict 1867 | -9/Mines | Met a Derelict who couldn't figure out how to use a Trap Extractor 1935 | -9/Mines | Discovered new exit (range 9) 1962 | -9/Mines | System corruption reached 10% 1963 | -9/Mines | Entered Materials 1963 | -8/Materials | Accompanied by 2 allies 1963 | -8/Materials | Evolved 4 slots: Propulsion x1, Utility x2, Weapon x1 2028 | -8/Materials | Garrison activated, responded to threat 2260 | -8/Materials | Build established: Skirmisher 2880 | -8/Materials | Discovered new exit (range 15) 3027 | -8/Materials | Entered Factory 3027 | -7/Factory | Evolved 2 slots: Propulsion x1, Utility x1 3169 | -7/Factory | Repaired Arm. Treads 3316 | -7/Factory | Sucked down chute 3316 | -7/Factory | Entered Waste 3331 | -7/Waste | EMP discharged 3355 | -7/Waste | Spotted C-40 Crusher 3382 | -7/Waste | Spotted C-40 Crusher 3424 | -7/Waste | Spotted C-40 Crusher 3431 | -7/Waste | EMP discharged 3431 | -7/Waste | System corruption reached 10% 3434 | -7/Waste | Crushed by Compactor (1 part destroyed, 1 dropped) 3438 | -7/Waste | Crushed by Compactor (0 parts destroyed, 1 dropped) 3444 | -7/Waste | Spotted C-40 Crusher 3449 | -7/Waste | Spotted C-40 Crusher 3453 | -7/Waste | Crushed by Compactor (0 parts destroyed, 2 dropped) 3454 | -7/Waste | Spotted C-40 Crusher 3457 | -7/Waste | Crushed by Compactor (0 parts destroyed, 1 dropped) 3473 | -7/Waste | Crushed by Compactor (1 part destroyed) 3497 | -7/Waste | Discovered new exit (range 10) 3506 | -7/Waste | Entered Factory 3605 | -7/Factory | Build established: Mutant 4101 | -7/Factory | Build established: Skirmisher 4624 | -7/Factory | Discovered new exit (range 9) 4708 | -7/Factory | Discovered new exit (range 16) 4815 | -7/Factory | Identified exit to Lower Caves 5044 | -7/Factory | Entered Lower Caves 5046 | -7/Lower Caves | Attracted the attention of an 0b10 checkpoint 5122 | -7/Lower Caves | Identified exit to Lower Caves 5182 | -7/Lower Caves | Learned location of Extension (-5) 5274 | -7/Lower Caves | Attracted the attention of an 0b10 outpost 5351 | -7/Lower Caves | Build established: Gunner 5370 | -7/Lower Caves | Entered another Lower Caves area 5425 | -7/Lower Caves | Encountered a Warlord checkpoint 5428 | -7/Lower Caves | Discovered new exit (range 8) 5462 | -7/Lower Caves | Learned Factory security intel 5523 | -7/Lower Caves | Spotted B-75 Beast 5720 | -7/Lower Caves | Destroyed B-75 Beast 5747 | -7/Lower Caves | Learned Factory trap positions 5958 | -7/Lower Caves | Discovered new exit (range 7) 5965 | -7/Lower Caves | Entered Zion 6042 | -7/Zion | Discovered new exit (range 16) 6090 | -7/Zion | System corruption cleaned by Quarantine Array 6244 | -7/Zion | Found Prototype Special Weapon 6247 | -7/Zion | Found Prototype Special Weapon 6251 | -7/Zion | Found Prototype Special Weapon 6254 | -7/Zion | Found Prototype Special Weapon 6399 | -7/Zion | Build established: Hauler-Gunner 6646 | -7/Zion | Given the Hacking Drone Bay 6646 | -7/Zion | Found Prototype Device 6774 | -7/Zion | Acquired unknown access codes intercepted by a Zionite 7047 | -7/Zion | Found GAL Module 7489 | -7/Zion | Learned Factory stockpile data 7695 | -7/Zion | Received a visual enhancement algorithm 7799 | -7/Zion | Rebuked by Imprinter 7834 | -7/Zion | Attempted to imprint without authorization 7834 | -7/Zion | Attacked by Zionites 8004 | -7/Zion | Core integrity fell below 50% 8045 | -7/Zion | ME-RLN came to Zion's defense 8058 | -7/Zion | System corruption reached 30% 8082 | -7/Zion | Core integrity fell below 20% 8086 | -7/Zion | Identified RU-N14's Throwing Claymores (x2) 8119 | -7/Zion | Identified Hacking Drone Bay 8120 | -7/Zion | Lost 9 parts (1p3n1u4w) 8217 | -7/Zion | Destroyed ME-RLN 8240 | -7/Zion | Spotted FU-C5S(B) 8242 | -7/Zion | Spotted RV-FNS(B) 8242 | -7/Zion | Destroyed RV-FNS(B) 8255 | -7/Zion | Destroyed FU-C5S(B) 8257 | -7/Zion | Destroyed by MI-2O7(z) with Makeshift Axe Last Messages --------------- 08238_ Z9-UYV(z) destroyed. 08239_ QR-0AU(z) pulls a Mak. Shrapnel Gun out of the Twisted Machinery. 9C-S54(z) bursts out of the Twisted Machinery. 08240_ 9C-S54(z) destroyed. 08242_ RV-FNS(B) destroyed. 08244_ The unstable cave ceiling collapses. 08246_ FU-C5S(B) Unknown Ballistic Cannon severed. 08247_ The unstable cave ceiling collapses. 08249_ System corrupted: IFF burst signal emitted. 08249_ Imp. Heat Sink destroyed. 08251_ The unstable cave ceiling collapses. AH-GNS(z) bursts out of the Twisted Machinery. 08252_ RU-N14's Throwing Claymores expended. 08252_ Destroyed Cooling System. 08252_ Destroyed Hvy. Armor Plating. 08252_ Mak. Power Source destroyed. 08253_ Imp. Aluminum Leg destroyed. 08253_ AH-GNS(z) pulls a Mak. Sword out of the Twisted Machinery. 08254_ The unstable cave ceiling collapses. 08255_ FU-C5S(B) destroyed. Map ----- +----------------------------------------------------+ | """""""""#????????????????????? | | """"""####???????????????????? | | ""#"""???????????????????? | | "" """"#???????????????????? | | "" "" """#???????????????????? | | """""" " ""#???????????????????? | | """"#"" "##???????????????????? | | "##"""" "" """#???????????????????? | | """"#"" """""""???????????????????? | | """#"""" """"#????????????????????? | | """##""""" """#????????????????????? | | ""####" "## ???????????????????? | | ###?#"" """"""##? ????????????????? | | ????#"" """"""### ??????????????? | | ????##"" ""# # # ????????????## | | ???###""" "" " # ##########?## | | ???#" "" """ " """""""""""#?# | | ???## " """"""" """"""""""#?# | | ????#" """"" ### | | ????#"" """ "" | | ????##" "" =% | | ????##"" "" ; ! ## | | ????#"" "#"" ;## """"""""# | | ????##" """" ##; """""""""""# | | ????##" """" ; # "############# | | ????#"" " """"" @ "#######???????????# # | | ????## " """zzz""#????????????????# # | | ????## " "" =="##????????????????# | | ????# % "#????????????????## # | | #???# " #?????????????????### | | #???# % " ???????????????????? | | ##### ??????????????????? | | # ## """ / * ##?????????????????? | | ## # #"" = "# ###??????????????????? | | # ""######????????????????????? | | # % ""#?????????????????????????? | | "###????????????????????????# | | #????????????????????????# | | #????????????????????????# | | *! ##???????????????????????# | | " * = "#??????????????????????## | | " """""% "#??????????????????????# | | " """" "" "#??????????????????????## | | """" " ##??????????????????????# | | """ "##?????????????????????# | | "" ""#?????????????????????## | | """ " ""###??????????????????????# | | #" "" """#???????????????????????? | | "" "" ""#???????????????????????? | | "" ""#" "" ""##???????????????????????? | +----------------------------------------------------+ Best States ------------- Heat Dissipation 48 Coolant Potential 50 Energy Generation 18 Energy Capacity 500 Matter Stores 300 Matter Capacity 300 Sight Range 16 Terrain Scan Density 10 Armor Coverage 600 Evasion (%) 40 Targeting Accuracy 16 Recoil Reduction 2 Item Schematics ----------------- Gauss Cannon | -7/Zion | Archive Remote Shield | -7/Zion | Archive Imp. EM Pulse Cannon | -7/Zion | Archive Lrn. Missile Launcher | -7/Zion | Archive Adv. ECM Suite | -7/Zion | Archive Mapping Drone Bay | -7/Zion | Archive Imp. Kinecellerator | -7/Zion | Archive Weapon Cycler | -7/Zion | Archive Mak. Hacking Suite | -7/Zion | Archive Imp. Trap Scanner | -7/Zion | Archive Adv. Signal Interpreter | -7/Zion | Archive Hrd. Heavy Armor Plating | -7/Zion | Archive Mak. Cloaking Device | -7/Zion | Archive Imp. KE Penetrator | -7/Zion | Archive Robot Schematics ------------------ H-55 Commando | -7/Zion | Archive Y-54 Guardian | -7/Zion | Archive M-14 Sweeper | -7/Zion | Archive Fabricated ------------ Nothing Alien Tech Used ----------------- None Achievements -------------- None Challenges ------------ None Game ------ Seed TrackerBottomlessRedirector Manual? 0 Play Time 01:09:17 Cumulative 338.1 hours Start 2022.06.19 @ 07:02:23 End 2022.06.19 @ 08:13:46 Sessions 1 Manual Loads 0 Difficulty Rogue Special Mode None Game No. 158 Rogue 158 Adventurer 0 Explorer 0 Win Type - Total 11 Types 6/0/3/0/0/0/2/0/0 Lore% 83 Gallery% 88 Achievement% 78 Wizard Run 0 Options --------- ASCII 0 Keyboard 1 Movement Numpad Keybinds 0 Fullscreen 2 Font 12/Terminus Map View 83x54 Tactical HUD 1 Map Filters NONE Filters NONE Steam 1 RUN: a0ba605f-b3e2-4451-912a-acdaa66eecdc